bitfinex-derivatives/quotes_SOLF0:USTF0_20230830
["timestamp","ask_amount","ask_price","bid_price","bid_amount"]
[1693413551997,234.4515,20.687,20.674,14.5185]
[1693413557688,0.71611712,20.683,20.674,14.5185]
[1693413559499,0.71611712,20.683,20.677,213.8]
[1693413562205,0.71611712,20.683,20.68,14.5085]
[1693413562591,0.71611712,20.683,20.671,855.2]
[1693413562592,213.8,20.696,20.682,213.8]
[1693413563095,21.2007,20.697,20.685,213.8]
[1693413563491,5.68,20.698,20.685,213.8]
[1693413566198,213.8,20.699,20.68,14.5085]
[1693413566199,213.8,20.702,20.688,213.8]
[1693413566393,5.68,20.698,20.685,213.8]
[1693413568100,5.68,20.693,20.689,0.78322686]
[1693413570898,5.68,20.693,20.683,213.8]
[1693413571490,5.68,20.693,20.683,213.86]
[1693413572101,5.68,20.693,20.683,0.06]
[1693413573197,5.68,20.693,20.678,213.8]
[1693413573198,213.8,20.691,20.678,213.8]
[1693413573801,213.8,20.689,20.675,233.6213]
[1693413574001,213.8,20.689,20.686,0.7193161]
[1693413574393,213.8,20.689,20.675,213.8]
[1693413579106,358.3,20.689,20.675,213.8]
[1693413579399,5.68,20.683,20.68,0.09886201]
[1693413579699,0.77210076,20.684,20.68,0.09886201]
[1693413580304,5.68,20.683,20.68,0.09886201]
[1693413580507,0.77210076,20.684,20.68,0.09886201]
[1693413585126,0.77210076,20.684,20.681,213.8]
[1693413592021,0.77210076,20.684,20.683,228.2985]
[1693413592419,0.77210076,20.684,20.683,130.6285]
[1693413592620,0.77210076,20.684,20.683,116.13]
[1693413593133,0.77210076,20.684,20.683,130.6285]
[1693413593430,116.13,20.697,20.684,14.4985]
[1693413597630,19.6779,20.698,20.688,14.4985]
[1693413599228,116.13,20.7,20.688,14.4985]
[1693413601933,116.13,20.702,20.69,14.4985]
[1693413607031,116.13,20.702,20.689,116.13]
[1693413607237,20.0131,20.703,20.687,116.13]
[1693413607238,5.68,20.698,20.687,116.13]
[1693413607491,5.68,20.698,20.684,116.19]
[1693413607492,116.13,20.697,20.684,116.19]
[1693413607640,116.13,20.697,20.684,130.6885]
[1693413609137,116.13,20.7,20.688,14.4985]
[1693413609338,116.13,20.7,20.688,15.16459759]
[1693413609339,0.73795194,20.693,20.688,15.16459759]
[1693413616750,0.73795194,20.693,20.689,0.06]
[1693413617246,0.73795194,20.693,20.69,14.4985]
[1693413618243,20.0131,20.703,20.692,116.13]
[1693413618638,616.13,20.704,20.692,116.13]
[1693413620145,116.13,20.702,20.689,116.19]
[1693413620341,144.5,20.702,20.689,0.06]
[1693413620553,5.68,20.698,20.689,0.06]
[1693413622347,116.13,20.696,20.689,0.06]
[1693413630153,116.13,20.696,20.684,116.13]
[1693413631154,260.63,20.696,20.684,116.13]
[1693413632066,5.68,20.693,20.681,116.13]
[1693413632257,116.13,20.692,20.68,14.4985]
[1693413632559,116.13,20.692,20.689,0.06]
[1693413632950,116.86852516,20.692,20.689,0.06]
[1693413637554,0.73852516,20.692,20.689,0.06]
[1693413640766,0.73852516,20.692,20.69,14.4985]
[1693413642563,486.56436231,20.715,20.69,130.6285]
[1693413642564,116.13,20.706,20.69,130.6285]
[1693413642765,116.13,20.706,20.694,14.4985]
[1693413643062,116.13,20.71,20.697,116.13]
[1693413655984,116.13,20.712,20.697,116.13]
[1693413661693,39.58281023,20.715,20.702,116.13]
[1693413661694,116.13,20.715,20.702,116.13]
[1693413662089,116.13,20.717,20.704,116.13]
[1693413662291,5.67,20.717,20.71,104.29]
[1693413671795,5.67,20.717,20.711,20.1295]
[1693413671999,104.29,20.719,20.712,104.29]
[1693413672200,104.29,20.719,20.712,118.7785]
[1693413672902,5.67,20.721,20.716,104.29]
[1693413673598,104.29,20.722,20.716,104.29]
[1693413675900,5.67,20.721,20.716,104.29]
[1693413677001,6.45262107,20.721,20.716,104.29]
[1693413677402,0.78262107,20.721,20.716,104.29]
[1693413677903,0.78262107,20.721,20.72,104.29]
[1693413678708,0.78262107,20.721,20.719,104.29]
[1693413680308,0.78262107,20.721,20.72,104.29]
[1693413687606,0.78262107,20.721,20.692,500.06]
[1693413687807,0.78262107,20.721,20.703,20.0699]
[1693413688113,104.29,20.72,20.712,104.29]
[1693413691312,500.0,20.724,20.715,104.29]
[1693413691313,5.66,20.721,20.715,104.29]
[1693413692314,505.66,20.724,20.712,115.83]
[1693413694817,5.66,20.724,20.712,115.83]
[1693413695315,115.83,20.723,20.71,115.83]
[1693413699323,0.69286417,20.719,20.71,115.83]
[1693413699925,0.69286417,20.719,20.707,136.5431]
[1693413700287,115.83,20.717,20.707,20.7131]
[1693413705226,115.83,20.717,20.708,14.4785]
[1693413707238,115.83,20.717,20.707,20.7131]
[1693413710232,38.62934362,20.723,20.699,115.83]
[1693413710233,115.83,20.712,20.699,115.83]
[1693413710438,115.83,20.712,20.7,21.4368]
[1693413710662,5.66,20.708,20.7,21.4368]
[1693413711433,500.0,20.714,20.706,0.23313748]
[1693413711434,5.67,20.713,20.706,0.23313748]
[1693413711734,115.83,20.707,20.706,0.23313748]
[1693413712128,115.83,20.707,20.702,0.29148018]
[1693413712327,115.83,20.703,20.702,0.29148018]
[1693413715239,115.83,20.706,20.702,0.29148018]
[1693413718847,115.83,20.709,20.702,0.29148018]
[1693413719159,5.67,20.708,20.702,0.29148018]
[1693413721342,115.83,20.709,20.696,130.3185]
[1693413722048,5.67,20.71,20.699,14.4885]
[1693413724856,115.83,20.715,20.703,115.83]
[1693413725248,115.83,20.715,20.704,20.52]
[1693413727448,463.32,20.724,20.706,14.4885]
[1693413727652,115.83,20.717,20.706,14.4885]
[1693413729957,115.83,20.717,20.709,0.71022163]
[1693413730454,0.71609104,20.714,20.709,0.71022163]
[1693413733256,115.83,20.722,20.71,115.83]
[1693413738361,115.83,20.726,20.706,115.83]
[1693413738576,115.83,20.726,20.714,115.83]
[1693413738759,115.83,20.726,20.715,20.657]
[1693413739163,115.83,20.729,20.717,115.83]
[1693413742863,115.83,20.731,20.72,14.4785]
[1693413746461,115.83,20.735,20.722,115.83]
[1693413746721,115.83,20.735,20.724,14.4785]
[1693413752069,5.65,20.731,20.724,14.4785]
[1693413752258,5.65,20.731,20.723,19.9171]
[1693413752464,115.83,20.729,20.723,19.9171]
[1693413752669,114.29100633,20.749,20.715,175.40247916]
[1693413752670,115.83,20.727,20.715,175.40247916]
[1693413752863,115.83,20.727,20.715,137.5857]
[1693413753363,115.83,20.73,20.718,115.83]
[1693413754123,115.83,20.73,20.715,21.7557]
[1693413754124,5.65,20.733,20.722,115.83]
[1693413754469,5.65,20.733,20.724,14.4785]
[1693413759560,5.65,20.733,20.723,20.2883]
[1693413762470,5.65,20.733,20.724,14.4785]
[1693413762710,115.83,20.738,20.726,115.83]
[1693413763569,115.83,20.741,20.731,14.4785]
[1693413764673,115.83,20.741,20.734,0.74150173]
[1693413766278,5.65,20.743,20.735,14.4785]
[1693413767177,115.83,20.744,20.733,21.2181]
[1693413767576,115.83,20.744,20.732,115.83]
[1693413767780,463.32,20.759,20.735,115.83]
[1693413767781,5.65,20.746,20.735,115.83]
[1693413768378,5.65,20.746,20.737,14.4785]
[1693413768972,115.83,20.75,20.739,115.83]
[1693413770578,115.83,20.753,20.741,115.83]
[1693413770774,8.76696285,20.752,20.741,115.83]
[1693413780684,115.83,20.749,20.737,115.83]
[1693413782473,115.83,20.749,20.741,0.78516729]
[1693413784782,5.64,20.743,20.741,0.78516729]
[1693413784977,5.64,20.743,20.732,115.83]
[1693413785874,5.64,20.743,20.733,21.3412]
[1693413786881,115.83,20.75,20.739,14.4585]
[1693413789691,115.83,20.753,20.741,115.83]
[1693413790082,115.83,20.753,20.739,21.1979]
[1693413790083,115.83,20.75,20.739,21.1979]
[1693413791088,5.64,20.746,20.735,115.83]
[1693413791789,115.83,20.743,20.731,115.83]
[1693413792393,115.83,20.742,20.729,115.83]
[1693413794502,615.83,20.745,20.733,115.83]
[1693413795298,115.83,20.747,20.735,115.83]
[1693413795595,115.83,20.751,20.739,115.83]
[1693413795993,115.83,20.751,20.74,20.6177]
[1693413802100,115.83,20.747,20.74,20.6177]
[1693413802406,115.83,20.745,20.733,115.83]
[1693413802612,115.83,20.745,20.736,0.11639762]
[1693413803042,115.83,20.745,20.737,14.4685]
[1693413804407,115.83,20.745,20.736,0.11639762]
[1693413804610,115.83,20.745,20.737,14.4685]
[1693413805019,115.83,20.747,20.737,14.4685]
[1693413810012,115.83,20.751,20.739,115.83]
[1693413810508,115.83,20.751,20.74,21.5274]
[1693413814810,5.64,20.747,20.74,21.5274]
[1693413817514,115.83,20.745,20.74,21.5274]
[1693413817714,115.83,20.745,20.736,0.11639762]
[1693413818511,115.83,20.742,20.736,0.11639762]
[1693413820206,115.83,20.742,20.737,14.4685]
[1693413820412,5.64,20.743,20.737,14.4685]
[1693413823413,501.61204818,20.75,20.736,0.11639762]
[1693413823414,115.83,20.742,20.736,0.11639762]
[1693413828629,500.0,20.746,20.736,0.11639762]
[1693413828630,115.83,20.74,20.736,0.11639762]
[1693413828829,5.64,20.736,20.732,0.17463137]
[1693413829123,5.64,20.733,20.732,0.17463137]
[1693413830624,5.64,20.733,20.728,0.23288842]
[1693413831325,115.83,20.73,20.724,0.2911688]
[1693413831521,115.83,20.727,20.724,0.2911688]
[1693413832529,115.83,20.727,20.72,0.34947251]
[1693413832924,115.83,20.724,20.72,0.34947251]
[1693413833225,115.83,20.721,20.711,0.46615]
[1693413833429,463.32,20.733,20.711,0.46615]
[1693413833430,115.83,20.719,20.711,0.46615]
[1693413833633,115.83,20.717,20.711,0.46615]
[1693413834224,115.83,20.713,20.711,0.46615]
[1693413834439,115.83,20.713,20.699,0.64134159]
[1693413834728,463.32,20.715,20.699,0.64134159]
[1693413834729,115.83,20.705,20.699,0.64134159]
[1693413835529,115.83,20.704,20.699,0.64134159]
[1693413837334,212.81,20.704,20.699,0.64134159]
[1693413838934,212.81,20.7,20.699,0.64134159]
[1693413839944,38.3235152,20.708,20.699,0.64134159]
[1693413839945,212.81,20.703,20.699,0.64134159]
[1693413841030,212.81,20.7,20.69,14.4785]
[1693413845331,212.81,20.7,20.689,97.80847666]
[1693413845537,212.81,20.695,20.689,97.80847666]
[1693413846540,212.81,20.695,20.689,21.327]
[1693413849143,212.81,20.695,20.69,14.4785]
[1693413849845,851.24,20.706,20.69,14.4785]
[1693413849846,212.81,20.697,20.69,14.4785]
[1693413851351,212.81,20.697,20.689,21.327]
[1693413851545,212.81,20.697,20.69,14.4785]
[1693413851850,212.81,20.697,20.689,21.327]
[1693413853144,212.81,20.697,20.69,14.4785]
[1693413853339,212.81,20.699,20.69,14.4785]
[1693413854955,212.81,20.697,20.69,14.4785]
[1693413858360,212.81,20.701,20.69,14.4785]
[1693413858561,858.0,20.729,20.69,227.2885]
[1693413858562,212.81,20.704,20.69,227.2885]
[1693413859357,212.81,20.708,20.694,14.4785]
[1693413862060,212.81,20.71,20.696,14.4885]
[1693413862255,38.9676172,20.717,20.696,115.99]
[1693413862256,115.99,20.709,20.696,115.99]
[1693413872467,5.66,20.708,20.696,115.99]
[1693413875186,5.66,20.708,20.7,0.70271719]
[1693413875477,0.68078134,20.704,20.7,0.70271719]
[1693413881981,116.67078134,20.704,20.7,0.70271719]
[1693413890399,0.68078134,20.704,20.7,0.70271719]
[1693413899295,116.67078134,20.704,20.7,0.70271719]
[1693413902395,104.43,20.702,20.7,0.70271719]
[1693413905008,0.68078134,20.704,20.7,0.70271719]
[1693413925621,105.11078134,20.704,20.7,0.70271719]
[1693413929322,104.43,20.701,20.7,0.70271719]
[1693413932033,104.43,20.703,20.7,0.70271719]
[1693413946035,110.1,20.701,20.7,0.70271719]
[1693413946288,5.67,20.7,20.691,20.3914]
[1693413946439,104.43,20.696,20.691,20.3914]
[1693413947443,104.43,20.693,20.69,0.11665598]
[1693413947633,104.43,20.691,20.69,0.11665598]
[1693413947830,104.43,20.691,20.686,0.17501899]
[1693413948034,583.0,20.71,20.678,0.29181509]
[1693413948035,104.43,20.687,20.678,0.29181509]
[1693413948234,104.43,20.684,20.678,0.29181509]
[1693413948445,104.43,20.684,20.679,8.87938198]
[1693413949349,104.43,20.684,20.678,260.0757335]
[1693413949540,104.43,20.684,20.679,259.78391841]
[1693413949738,104.43,20.684,20.678,0.29181509]
[1693413950943,104.43,20.684,20.679,8.87943538]
[1693413951340,104.43,20.684,20.678,0.29181509]
[1693413952656,104.43,20.687,20.68,104.43]
[1693413955143,104.43,20.687,20.682,0.98091048]
[1693413955347,105.14794118,20.687,20.682,0.98091048]
[1693413957345,104.43,20.686,20.682,0.98091048]
[1693413958151,104.43,20.683,20.682,0.98091048]
[1693413958848,104.43,20.683,20.674,0.35024822]
[1693413959148,104.43,20.675,20.674,0.35024822]
[1693413961245,500.0,20.688,20.674,0.35024822]
[1693413961546,104.43,20.677,20.674,0.35024822]
[1693413962639,104.43,20.677,20.669,104.43]
[1693413963852,104.43,20.677,20.675,0.06]
[1693413968656,110.11,20.676,20.675,0.06]
[1693413970053,5.68,20.675,20.669,20.0532]
[1693413970356,104.43,20.674,20.669,20.0532]
[1693413971154,104.43,20.674,20.667,104.43]
[1693413971964,104.43,20.672,20.664,104.43]
[1693413980858,500.0,20.678,20.637,14.5285]
[1693413981060,500.0,20.668,20.642,14.5285]
[1693413981273,24.19315,20.667,20.641,20.0265]
[1693413982163,24.19315,20.667,20.637,104.43]
[1693413982164,104.43,20.645,20.637,104.43]
[1693413982362,104.43,20.645,20.638,8.89749441]
[1693413982563,104.43,20.645,20.638,28.92399441]
[1693413982758,104.43,20.645,20.638,20.0265]
[1693413983258,104.43,20.642,20.638,20.0265]
[1693413983464,104.43,20.64,20.638,20.0265]
[1693413985062,63.42220568,20.667,20.638,20.0265]
[1693413985362,63.42220568,20.667,20.642,104.43]
[1693413985363,104.43,20.652,20.642,104.43]
[1693413985663,104.43,20.652,20.643,8.89683705]
[1693413986572,104.43,20.654,20.646,104.43]
[1693413986768,104.43,20.657,20.648,104.43]
[1693413987362,213.61,20.66,20.647,500.0]
[1693413988963,213.61,20.66,20.645,213.61]
[1693413989160,213.61,20.66,20.647,500.0]
[1693413989763,213.61,20.657,20.647,500.0]
[1693413989956,213.61,20.657,20.643,213.61]
[1693413990173,213.61,20.657,20.644,30.23675364]
[1693413990363,213.61,20.653,20.645,8.89405364]
[1693413991169,213.61,20.653,20.647,500.0]
[1693413991364,213.61,20.656,20.647,500.0]
[1693413992071,213.61,20.656,20.644,21.3427]
[1693413992272,213.61,20.656,20.645,8.89398178]
[1693413993478,213.61,20.656,20.647,500.0]
[1693413995019,213.61,20.66,20.647,500.0]
[1693413995875,213.61,20.66,20.646,213.61]
[1693413996089,213.61,20.66,20.647,508.89346679]
[1693413996281,213.61,20.66,20.647,500.0]
[1693413996872,213.61,20.663,20.649,213.61]
[1693414005885,213.61,20.663,20.646,213.61]
[1693414005886,213.61,20.659,20.646,213.61]
[1693414006104,213.61,20.656,20.644,21.3427]
[1693414007285,0.72462804,20.652,20.644,21.3427]
[1693414008296,0.72462804,20.652,20.64,0.06]
[1693414008297,213.61,20.647,20.64,0.06]
[1693414011595,0.6560583,20.646,20.64,0.06]
[1693414011983,213.61,20.645,20.64,0.06]
[1693414014184,213.61,20.641,20.61,213.61]
[1693414014380,213.61,20.636,20.621,21.8904]
[1693414014586,213.61,20.636,20.622,8.90001832]
[1693414014786,213.61,20.636,20.623,8.90001832]
[1693414015081,213.61,20.636,20.621,21.8904]
[1693414015082,213.61,20.632,20.621,21.8904]
[1693414015287,213.61,20.632,20.622,8.90360746]
[1693414016588,213.61,20.628,20.622,8.90360746]
[1693414016989,213.61,20.628,20.614,213.61]
[1693414017197,213.61,20.628,20.615,29.05641503]
[1693414017396,213.61,20.636,20.616,8.90391503]
[1693414017588,213.61,20.619,20.616,8.90391503]
[1693414017789,213.61,20.619,20.612,4.5]
[1693414018483,213.61,20.619,20.613,8.90777371]
[1693414019979,213.61,20.619,20.612,4.5]
[1693414022080,213.61,20.621,20.612,4.5]
[1693414023787,213.61,20.621,20.613,8.90694607]
[1693414028503,213.61,20.624,20.613,8.90694607]
[1693414030595,213.61,20.624,20.614,14.55]
[1693414030894,213.61,20.624,20.616,14.55]
[1693414031194,213.61,20.624,20.617,8.90694607]
[1693414031395,213.61,20.624,20.613,14.55]
[1693414031591,213.61,20.624,20.614,8.90578465]
[1693414032097,213.61,20.626,20.614,8.90578465]
[1693414033290,213.61,20.628,20.614,222.51578465]
[1693414033491,213.61,20.628,20.616,14.55]
[1693414033696,213.61,20.628,20.614,213.61]
[1693414033890,213.61,20.628,20.616,14.55]
[1693414034092,213.61,20.628,20.614,213.61]
[1693414034296,213.61,20.628,20.616,14.55]
[1693414034498,213.61,20.628,20.614,213.61]
[1693414034695,213.61,20.628,20.616,14.55]
[1693414034897,213.61,20.628,20.614,213.61]
[1693414035197,213.61,20.628,20.616,14.55]
[1693414035400,213.61,20.628,20.614,213.61]
[1693414035401,213.61,20.628,20.617,8.90580645]
[1693414035699,213.61,20.628,20.614,213.61]
[1693414035897,213.61,20.628,20.616,14.55]
[1693414036094,213.61,20.628,20.617,8.90579258]
[1693414036295,213.61,20.628,20.614,213.61]
[1693414036498,213.61,20.628,20.616,14.55]
[1693414036695,213.61,20.628,20.617,8.90584462]
[1693414037007,213.61,20.628,20.614,213.61]
[1693414037300,213.61,20.628,20.616,14.55]
[1693414037498,213.61,20.628,20.617,8.90580913]
[1693414037699,213.61,20.628,20.616,14.55]
[1693414037900,213.61,20.628,20.615,8.90580913]
[1693414037901,213.61,20.628,20.617,8.90570861]
[1693414038090,213.61,20.628,20.614,213.61]
[1693414038289,213.61,20.628,20.616,14.55]
[1693414038494,213.61,20.628,20.614,213.61]
[1693414038495,213.61,20.628,20.617,8.90571115]
[1693414038696,213.61,20.628,20.614,213.61]
[1693414038697,213.61,20.628,20.619,14.55]
[1693414039000,213.61,20.628,20.614,213.61]
[1693414039200,213.61,20.628,20.616,14.55]
[1693414039397,213.61,20.628,20.614,213.61]
[1693414039398,213.61,20.628,20.617,8.90574892]
[1693414039598,213.61,20.628,20.614,213.61]
[1693414039799,213.61,20.628,20.616,14.55]
[1693414039998,213.61,20.628,20.617,8.90571276]
[1693414040199,213.61,20.628,20.614,213.61]
[1693414040400,213.61,20.628,20.616,14.55]
[1693414040603,213.61,20.628,20.617,8.90580276]
[1693414040797,213.61,20.628,20.614,213.61]
[1693414041093,213.61,20.628,20.616,14.55]
[1693414041305,213.61,20.628,20.617,8.90576326]
[1693414041498,213.61,20.628,20.618,8.90576326]
[1693414041697,213.61,20.628,20.617,8.90576326]
[1693414041905,213.61,20.628,20.619,14.55]
[1693414042094,213.61,20.628,20.614,213.61]
[1693414042301,213.61,20.628,20.616,14.55]
[1693414042600,213.61,20.628,20.617,8.90572046]
[1693414042791,213.61,20.628,20.617,500.0]
[1693414042992,213.61,20.631,20.619,14.55]
[1693414043194,213.61,20.631,20.617,713.61]
[1693414043195,213.61,20.631,20.621,14.55]
[1693414043395,213.61,20.631,20.622,8.90542691]
[1693414043591,213.61,20.635,20.624,14.55]
[1693414043801,213.61,20.635,20.621,213.61]
[1693414044003,213.61,20.635,20.622,8.90256064]
[1693414044300,213.61,20.635,20.622,29.54696064]
[1693414044496,213.61,20.635,20.624,14.55]
[1693414044703,213.61,20.635,20.622,20.6444]
[1693414044904,213.61,20.638,20.624,228.16]
[1693414045100,213.61,20.638,20.625,8.90246187]
[1693414046096,213.61,20.638,20.624,213.61]
[1693414046596,213.61,20.638,20.625,8.9024652]
[1693414046998,854.44,20.646,20.628,14.55]
[1693414046999,213.61,20.641,20.628,14.55]
[1693414047199,213.61,20.646,20.631,14.55]
[1693414049803,213.61,20.647,20.634,213.61]
[1693414050306,213.61,20.647,20.636,14.55]
[1693414051495,213.61,20.651,20.638,14.55]
[1693414055612,213.61,20.647,20.636,14.55]
[1693414058510,213.61,20.644,20.635,20.7993]
[1693414060517,213.61,20.644,20.632,38.27602904]
[1693414060815,213.61,20.644,20.633,8.89922326]
[1693414061014,213.61,20.644,20.631,14.55]
[1693414061214,213.61,20.644,20.632,8.89920528]
[1693414061914,213.61,20.647,20.633,213.61]
[1693414062121,213.61,20.647,20.634,8.89920528]
[1693414062723,213.61,20.644,20.631,14.54]
[1693414063014,213.61,20.644,20.632,8.89921474]
[1693414064014,213.61,20.644,20.627,36.007]
[1693414064015,213.61,20.64,20.627,36.007]
[1693414064210,213.61,20.637,20.627,59.79726633]
[1693414064412,213.61,20.637,20.627,74.33726633]
[1693414064622,213.61,20.637,20.628,8.9023903]
[1693414066122,213.61,20.631,20.621,14.54]
[1693414066316,213.61,20.631,20.622,8.25300022]
[1693414067311,213.61,20.635,20.622,8.25300022]
[1693414068016,213.61,20.632,20.616,213.61]
[1693414068232,213.61,20.632,20.617,8.22254301]
[1693414069518,854.44,20.637,20.617,8.22254301]
[1693414069724,213.61,20.624,20.618,8.22254301]
[1693414070022,213.61,20.624,20.613,36.0824]
[1693414070223,213.61,20.628,20.614,8.22279846]
[1693414073424,213.61,20.628,20.613,36.0824]
[1693414073628,144.5,20.632,20.613,36.0824]
[1693414073629,213.61,20.624,20.613,14.54]
[1693414073815,213.61,20.621,20.613,14.54]
[1693414076424,213.61,20.624,20.613,14.54]
[1693414076625,213.61,20.627,20.613,228.15]
[1693414079932,213.61,20.627,20.616,500.0]
[1693414080125,854.44,20.637,20.616,500.0]
[1693414080126,213.61,20.63,20.617,8.22401796]
[1693414080428,213.61,20.63,20.617,30.01911796]
[1693414080628,213.61,20.63,20.619,14.54]
[1693414080929,213.61,20.633,20.619,213.61]
[1693414083430,213.61,20.63,20.617,21.7951]
[1693414085032,213.61,20.633,20.619,228.15]
[1693414085233,213.61,20.633,20.619,213.61]
[1693414087931,213.61,20.633,20.621,14.54]
[1693414088128,213.61,20.633,20.619,213.61]
[1693414090532,213.61,20.631,20.617,273.64928604]
[1693414090733,213.61,20.631,20.619,14.55]
[1693414090943,213.61,20.631,20.617,273.64928604]
[1693414094454,213.61,20.634,20.621,14.55]
[1693414094686,213.61,20.637,20.624,14.55]
[1693414098049,213.61,20.641,20.627,213.61]
[1693414106852,213.61,20.641,20.628,21.6603]
[1693414107352,116.75,20.636,20.628,21.6603]
[1693414107547,116.75,20.636,20.624,14.55]
[1693414107759,116.75,20.636,20.624,53.44534883]
[1693414109065,116.75,20.632,20.621,14.55]
[1693414111355,116.75,20.632,20.628,0.06]
[1693414112258,116.75,20.632,20.621,14.55]
[1693414114455,116.75,20.636,20.624,14.55]
[1693414122056,116.75,20.634,20.622,116.75]
[1693414123062,116.75,20.631,20.621,14.54]
[1693414123464,116.75,20.627,20.616,14.54]
[1693414124255,116.75,20.627,20.613,20.3365]
[1693414124256,116.75,20.624,20.613,34.8765]
[1693414124467,116.75,20.624,20.614,8.22538478]
[1693414124961,116.75,20.627,20.614,8.22538478]
[1693414126669,116.75,20.629,20.617,116.75]
[1693414129372,116.75,20.633,20.621,14.54]
[1693414129665,467.0,20.646,20.624,116.75]
[1693414129969,116.75,20.636,20.624,116.75]
[1693414130177,116.75,20.636,20.625,20.1336]
[1693414132074,116.75,20.634,20.625,20.1336]
[1693414135368,0.67094546,20.632,20.625,20.1336]
[1693414141372,0.67094546,20.632,20.628,0.06]
[1693414155681,0.67094546,20.632,20.627,39.11240309]
[1693414155892,0.67094546,20.632,20.625,20.1336]
[1693414156795,0.67094546,20.632,20.628,0.06]
[1693414161286,0.67094546,20.632,20.624,51.0394]
[1693414161495,116.75,20.625,20.613,35.6349]
[1693414161686,467.0,20.628,20.613,35.6349]
[1693414161687,116.75,20.623,20.613,35.6349]
[1693414163804,116.75,20.624,20.613,35.6349]
[1693414165689,0.70200011,20.621,20.613,35.6349]
[1693414170298,0.70200011,20.621,20.613,21.0949]
[1693414171691,116.75,20.619,20.613,21.0949]
[1693414172895,0.70200011,20.621,20.596,14.54]
[1693414173104,116.75,20.614,20.599,116.75]
[1693414173295,116.75,20.614,20.6,8.23000188]
[1693414174702,116.75,20.61,20.6,8.23000188]
[1693414175004,116.75,20.61,20.602,14.54]
[1693414175199,116.75,20.61,20.597,20.8468]
[1693414175496,116.75,20.61,20.599,14.54]
[1693414175704,116.75,20.61,20.6,8.23031275]
[1693414175899,116.75,20.61,20.599,14.54]
[1693414176201,0.70866866,20.606,20.6,8.23031275]
[1693414176500,0.70866866,20.606,20.602,14.54]
[1693414176702,0.70866866,20.606,20.597,20.8468]
[1693414176906,0.70866866,20.606,20.599,14.54]
[1693414177102,0.70866866,20.606,20.6,8.23034754]
[1693414177400,0.70866866,20.606,20.601,8.23034754]
[1693414177596,0.70866866,20.606,20.597,160.94902748]
[1693414177797,0.70866866,20.606,20.599,14.54]
[1693414177998,0.70866866,20.606,20.6,8.23037276]
[1693414178241,0.70866866,20.606,20.601,8.23037276]
[1693414178401,0.70866866,20.606,20.597,160.94902748]
[1693414178601,0.70866866,20.606,20.599,14.54]
[1693414178813,0.70866866,20.606,20.6,8.2303775]
[1693414179004,0.70866866,20.606,20.601,8.2303775]